bitfinex/quotes_ETHUSD_20250622
["timestamp","ask_amount","ask_price","bid_price","bid_amount"]
[1750567607319,8.54631495,2281.3,2281.1,3.50704592]
[1750567607793,8.54631495,2281.3,2281.2,3.50692617]
[1750567607996,8.0852,2281.4,2281.2,3.50692617]
[1750567608194,8.0852,2281.4,2281.3,3.50677245]
[1750567608357,8.0852,2281.4,2281.2,3.50686173]
[1750567608558,7.263,2281.3,2281.2,3.50686173]
[1750567609391,0.8222,2281.4,2281.2,3.50686173]
[1750567609578,7.263,2281.3,2281.2,3.50686173]
[1750567610094,7.263,2281.3,2280.9,3.059926]
[1750567610393,15.84231546,2281.3,2281.0,3.50718535]
[1750567610581,15.80931495,2281.3,2281.0,3.50718535]
[1750567610892,0.03300051,2281.2,2281.0,3.50718535]
[1750567611401,15.80931495,2281.3,2281.2,3.50692617]
[1750567611603,0.8222,2281.4,2281.2,3.50692617]
[1750567611908,7.262,2281.3,2281.1,3.50704523]
[1750567612069,8.0842,2281.3,2281.2,3.50692617]
[1750567612715,0.22891428,2281.4,2281.3,3.50677245]
[1750567613091,0.22891428,2281.4,2281.3,4.10060508]
[1750567613270,0.22891428,2281.4,2281.3,4.05677245]
[1750567613469,0.22891428,2281.4,2281.3,4.93231177]
[1750567613694,0.22891428,2281.4,2281.3,4.93231186]
[1750567613880,0.22891428,2281.4,2281.3,7.94840831]
[1750567615711,0.22891428,2281.4,2281.3,8.74563519]
[1750567615873,0.22891428,2281.4,2281.3,8.70180831]
[1750567617411,0.22891428,2281.4,2281.3,18.70180831]
[1750567617799,0.22891428,2281.4,2281.3,20.61880831]
[1750567620522,0.22891428,2281.4,2281.3,29.16512326]
[1750567620695,0.22891428,2281.4,2281.3,20.61880831]
[1750567620896,0.22891428,2281.4,2281.3,27.87780831]
[1750567624636,0.22891428,2281.4,2281.3,36.42412326]
[1750567625303,40.0,2282.7,2282.2,3.50538953]
[1750567625505,30.0,2282.7,2282.6,3.50477525]
[1750567625824,4.0,2282.7,2282.6,3.50477525]
[1750567626417,30.0,2282.6,2282.3,3.50511024]
[1750567626605,30.0,2282.4,2282.3,3.50511024]
[1750567626807,0.8011,2282.7,2282.6,3.5046583]
[1750567627331,0.7607,2282.9,2282.7,3.50462171]
[1750567627530,4.0,2282.8,2282.6,3.50465318]
[1750567628224,0.79370051,2282.9,2282.6,3.50465318]
[1750567628431,1.72770206,2282.9,2282.5,3.504905]
[1750567628594,1.72770206,2282.9,2282.6,3.50475986]
[1750567629732,10.27401701,2282.9,2282.7,3.50461824]
[1750567629892,9.30701495,2282.9,2282.7,3.50461824]
[1750567630747,9.30701495,2282.9,2282.6,3.50472059]
[1750567630924,0.03300051,2282.8,2282.6,3.50472059]
[1750567632619,0.03300051,2282.8,2282.7,3.50462171]
[1750567633300,9.30701495,2282.9,2282.6,3.50471474]
[1750567633502,0.03300051,2282.8,2282.6,3.50471474]
[1750567633729,0.03300051,2282.8,2282.3,6.1162184]
[1750567633925,8.54631495,2282.7,2282.3,6.1162184]
[1750567634128,0.7607,2282.9,2282.8,3.50446819]
[1750567634439,30.0,2283.0,2282.8,3.50446819]
[1750567634632,30.0,2283.0,2282.9,3.50431468]
[1750567634938,34.0,2283.0,2282.9,3.50431468]
[1750567635143,34.0,2283.0,2282.6,3.50476011]
[1750567635341,30.0,2282.9,2282.8,3.50444501]
[1750567636407,8.0183,2283.3,2283.0,3.50416119]
[1750567636611,8.77513367,2283.2,2283.1,3.5040077]
[1750567637443,8.77513367,2283.2,2283.0,3.5040945]
[1750567637611,8.77513367,2283.2,2282.8,2.61101172]
[1750567637811,8.54631495,2283.0,2282.9,3.50422165]
[1750567638763,30.8279,2282.9,2282.6,2.61101172]
[1750567638908,8.54631495,2282.7,2282.5,3.50483215]
[1750567639114,0.8279,2282.5,2281.9,0.7971]
[1750567639429,0.8279,2282.1,2282.0,3.50569381]
[1750567639612,0.86090051,2282.1,2281.9,3.50578347]
[1750567639811,8.54631495,2282.0,2281.6,1.912]
[1750567640047,8.54631495,2281.8,2281.7,3.50615768]
[1750567640613,8.54631495,2281.8,2281.6,15.41826543]
[1750567641318,0.8279,2281.7,2281.5,3.50645591]
[1750567641550,0.86090051,2281.7,2281.5,3.50645591]
[1750567641720,1.08978299,2281.7,2281.5,3.50645591]
[1750567642719,8.54631495,2281.6,2281.4,3.50658098]
[1750567642919,8.54631495,2281.6,2281.3,3.50675504]
[1750567643562,8.54631495,2281.6,2281.5,3.50646504]
[1750567644424,0.22888248,2281.7,2281.6,3.50631136]
[1750567644625,8.77519743,2281.7,2281.6,3.50631136]
[1750567649675,0.22888248,2281.7,2281.6,4.28671136]
[1750567649842,0.22888248,2281.7,2281.6,4.33053529]
[1750567650245,0.22888248,2281.7,2281.6,14.88053529]
[1750567650571,0.22888248,2281.7,2281.6,14.83671136]
[1750567651077,8.0312,2282.7,2281.6,14.83671136]
[1750567651078,37.252,2282.7,2282.6,3.50462688]
[1750567651387,41.252,2282.7,2282.6,3.50462688]
[1750567651542,41.48081175,2282.7,2282.6,3.50462688]
[1750567651741,41.48081175,2282.7,2282.3,0.7804]
[1750567651742,30.0,2282.6,2282.5,3.50486989]
[1750567652077,30.0,2282.6,2282.4,3.5050224]
[1750567655063,30.0,2282.6,2282.5,3.5049288]
[1750567655262,7.48081175,2282.7,2282.6,3.50477525]
[1750567655465,7.51381226,2282.7,2282.6,3.50477525]
[1750567655664,0.22881175,2282.7,2282.6,3.50477525]
[1750567655851,7.47981175,2282.7,2282.6,3.50477525]
[1750567656176,0.22881175,2282.7,2282.6,3.50477525]
[1750567656378,0.22881175,2282.7,2282.6,4.24955263]
[1750567656553,0.22881175,2282.7,2282.6,4.20574453]
[1750567656939,0.22881175,2282.7,2282.6,4.24954994]
[1750567657372,0.22881175,2282.7,2282.6,4.20574453]
[1750567658778,0.22881175,2282.7,2282.6,16.81675625]
[1750567662580,0.22881175,2282.7,2282.6,18.72575625]
[1750567662886,0.22881175,2282.7,2282.6,16.11474453]
[1750567664180,0.22881175,2282.7,2282.6,15.41377525]
[1750567664760,0.22881175,2282.7,2282.2,1.909]
[1750567664965,0.26181226,2282.7,2282.2,1.909]
[1750567665165,0.26181226,2282.7,2282.4,13.50492983]
[1750567665372,0.26181226,2282.7,2282.4,13.50507548]
[1750567665559,0.26181226,2282.7,2282.5,3.50483784]
[1750567665992,0.26181226,2282.7,2282.4,13.50501464]
[1750567666196,30.0,2282.6,2282.4,13.50501464]
[1750567666689,0.7574,2282.4,2282.2,1.909]
[1750567666989,0.7574,2282.6,2282.3,3.50514395]
[1750567667198,0.03300051,2282.5,2282.3,3.50523594]
[1750567667415,0.26183909,2282.5,2282.3,3.50523594]
[1750567667886,0.26183909,2282.5,2282.4,3.50508236]
[1750567668703,0.26183909,2282.5,2282.3,3.50514767]
[1750567668907,0.26183909,2282.5,2282.3,3.50522513]
[1750567669469,0.26183909,2282.5,2282.4,3.50508236]
[1750567670807,30.817,2282.4,2281.8,10.527]
[1750567670981,30.0,2282.2,2282.1,3.50553088]
[1750567671177,30.0,2282.3,2282.1,3.50553088]
[1750567671391,30.0,2282.3,2282.0,3.50561186]
[1750567671795,29.4,2282.3,2282.1,3.50551165]
[1750567672102,29.4,2282.3,2282.0,3.50563471]
[1750567672103,30.0,2282.3,2282.0,3.50563471]
[1750567672306,0.03300051,2282.2,2282.0,3.50563471]
[1750567672669,40.0,2282.2,2282.0,3.50563471]
[1750567672872,8.53029268,2282.1,2282.0,3.50563471]
[1750567673602,15.77729268,2282.3,2282.2,3.50532148]
[1750567673818,15.77729268,2282.3,2282.1,3.50552701]
[1750567674321,8.53029268,2282.3,2282.2,3.50538953]
[1750567674817,0.817,2282.4,2282.1,3.50548406]
[1750567675104,10.03300051,2282.3,2282.1,3.50548406]
[1750567675406,30.0,2282.3,2282.1,3.50548406]
[1750567675808,30.0,2282.3,2282.2,3.50538953]
[1750567676398,8.063,2282.4,2282.2,3.50538953]
[1750567676598,0.03300051,2282.3,2282.2,3.50538953]
[1750567677425,0.817,2282.4,2282.2,3.50538953]
[1750567677576,0.22883858,2282.5,2282.4,3.50508236]
[1750567677776,7.47483858,2282.5,2282.4,3.50508236]
[1750567678079,0.22883858,2282.5,2282.4,3.50508236]
[1750567678404,0.22883858,2282.5,2282.4,5.15399462]
[1750567679113,0.22883858,2282.5,2282.4,15.19780274]
[1750567679278,0.22883858,2282.5,2282.4,15.15399462]
[1750567679679,0.22883858,2282.5,2282.4,14.40139462]
[1750567679877,0.22883858,2282.5,2282.4,13.50508236]
[1750567680305,0.22883858,2282.5,2282.3,5.41412688]
[1750567680498,0.22883858,2282.5,2282.4,3.50508236]
[1750567682525,0.22883858,2282.5,2282.4,4.30199253]
[1750567683078,0.22883858,2282.5,2282.4,4.25818236]
[1750567687123,0.22883858,2282.5,2282.4,13.40818236]
[1750567690324,0.22883858,2282.5,2282.4,23.40818236]
[1750567690523,0.22883858,2282.5,2282.4,26.01919408]
[1750567694829,0.22883858,2282.5,2282.4,23.95818236]
[1750567695016,0.22883858,2282.5,2282.4,26.56919408]
[1750567696726,1.52876458,2283.3,2283.2,3.50385423]
[1750567696926,1.52876458,2283.3,2283.2,22.64985423]
[1750567697298,0.22873698,2283.3,2283.2,22.64985423]
[1750567698135,0.22873698,2283.3,2283.2,23.46295423]
[1750567699747,0.22873698,2283.3,2283.2,14.31695423]
[1750567699923,0.22873698,2283.3,2283.2,25.24404906]
[1750567701947,0.22873698,2283.3,2283.2,25.79404906]
[1750567702121,0.22873698,2283.3,2283.2,36.31604906]
[1750567702324,0.7598,2284.5,2284.4,3.50201365]
[1750567702713,0.7598,2284.7,2284.6,3.50170708]
[1750567702920,1.20815246,2284.9,2284.8,3.50140056]
[1750567703135,1.8839153,2284.9,2284.8,3.50140056]
[1750567703338,0.7598,2284.9,2284.8,3.50140056]
[1750567703648,0.98844422,2284.9,2284.8,3.50140056]
[1750567704013,0.98844422,2284.9,2284.8,10.73940056]
[1750567704328,0.22864422,2284.9,2284.8,21.55000056]
[1750567706260,0.22864422,2284.9,2284.8,14.31200056]
[1750567706551,0.1420718,2285.7,2285.6,3.500175]
[1750567706725,0.1420718,2285.7,2285.6,10.736175]
[1750567707053,0.37064205,2285.7,2285.6,10.736175]
[1750567709060,0.37064205,2285.7,2285.6,20.736175]
[1750567709977,0.37064205,2285.7,2285.6,16.11118672]
[1750567710269,0.37064205,2285.7,2285.6,27.03028155]
[1750567710620,0.37064205,2285.7,2285.6,24.41926983]
[1750567712320,0.37064205,2285.7,2285.6,15.28226983]
[1750567712537,1.14754205,2285.7,2284.8,0.8036]
[1750567712737,1.14754205,2285.7,2284.9,9.135]
[1750567712738,0.7769,2285.3,2284.9,9.135]
[1750567712936,0.80990051,2285.3,2285.0,3.50109409]
[1750567713170,13.02504356,2285.2,2285.1,3.50084024]
[1750567713470,13.02504356,2285.2,2285.1,3.50094087]
[1750567714349,0.7769,2285.3,2285.2,3.50078767]
[1750567715173,0.7769,2285.2,2283.9,0.8036]
[1750567715503,0.7769,2285.2,2285.1,3.50094087]
[1750567716049,13.80194356,2285.5,2285.3,3.5005352]
[1750567719099,0.7769,2285.5,2285.4,4.20059229]
[1750567720496,40.0,2285.6,2285.5,3.50032815]
[1750567720711,30.0,2285.6,2285.5,3.50032815]
[1750567721077,1.12654205,2285.7,2285.6,3.500175]
[1750567721877,0.37064205,2285.7,2285.6,13.500175]
[1750567722169,0.37064205,2285.7,2285.6,14.54148141]
[1750567723468,0.37064205,2285.7,2285.6,21.77148141]
[1750567726003,0.37064205,2285.7,2285.6,24.38249313]
[1750567726188,0.37064205,2285.7,2285.6,21.77148141]
[1750567726509,0.37064205,2285.7,2285.6,25.17399313]
[1750567727505,0.37064205,2285.7,2285.6,25.72399313]
[1750567728316,0.37064205,2285.7,2285.6,27.08699313]
[1750567729010,0.37064205,2285.7,2285.6,27.63699313]
[1750567730883,0.37064205,2285.7,2285.6,27.63399313]
[1750567732426,0.37064205,2285.7,2285.6,17.94399313]
[1750567732591,0.37064205,2285.7,2285.6,27.63399313]
[1750567736326,0.37064205,2285.7,2285.6,18.49399313]
[1750567736715,0.37064205,2285.7,2285.6,27.62599313]
[1750567737861,0.37064205,2285.7,2285.6,18.49399313]
[1750567738061,0.37064205,2285.7,2285.6,27.62499313]
[1750567739159,0.1420718,2285.7,2285.6,27.62499313]
[1750567741540,0.1420718,2285.7,2285.6,27.62399313]
[1750567742338,0.1420718,2285.7,2285.6,18.49399313]
[1750567742732,0.1420718,2285.7,2285.6,7.94399313]
[1750567743042,0.1420718,2285.7,2285.6,13.67348141]
[1750567743244,0.1420718,2285.7,2285.6,23.67348141]
[1750567743556,0.1420718,2285.7,2285.6,13.68248141]
[1750567743947,0.1420718,2285.7,2285.6,23.68248141]
[1750567744370,0.1420718,2285.7,2285.6,14.54148141]
[1750567744525,0.1420718,2285.7,2285.6,23.68148141]
[1750567745633,0.1420718,2285.7,2285.6,4.54148141]
[1750567745835,0.1420718,2285.7,2285.6,12.640175]
[1750567746158,0.1420718,2285.7,2285.6,22.640175]
[1750567747031,0.1420718,2285.7,2285.6,15.405175]
[1750567747229,0.1420718,2285.7,2285.6,22.640175]
[1750567749841,0.1420718,2285.7,2285.6,24.39206854]
[1750567751285,0.1420718,2285.7,2285.6,13.500175]
[1750567751485,0.1420718,2285.7,2285.6,22.637175]
[1750567751887,0.9044718,2285.7,2285.6,15.405175]
[1750567754889,0.93747231,2285.7,2285.2,1.905]
[1750567755194,2.34383216,2285.7,2285.6,3.500175]
[1750567755380,0.9044718,2285.7,2285.6,3.500175]
[1750567755890,1.13304773,2285.7,2285.6,3.500175]
[1750567757596,1.16604824,2285.7,2285.5,3.50020429]
[1750567758690,0.7907,2285.6,2285.3,20.73454456]
[1750567758994,0.03300051,2285.5,2285.4,3.50038888]
[1750567759683,0.7907,2285.6,2285.5,3.50032815]
[1750567768799,0.7907,2285.6,2285.4,3.50032886]
[1750567769102,0.03300051,2285.5,2285.4,3.50048131]
[1750567769472,0.7907,2285.6,2285.5,3.50032815]
[1750567770296,0.37064773,2285.7,2285.6,3.500175]
[1750567773911,0.37064773,2285.7,2285.5,3.50021705]
[1750567773912,0.40364824,2285.7,2285.5,3.50021705]
[1750567774112,0.40364824,2285.7,2285.2,10.0]
[1750567774286,0.40364824,2285.7,2285.6,3.500175]
[1750567776025,0.7818,2285.6,2285.5,3.50032302]
[1750567778240,0.7818,2285.6,2285.4,3.50041886]
[1750567778434,0.03300051,2285.5,2285.4,3.50041886]
[1750567778635,0.81480051,2285.6,2285.5,3.50032815]
[1750567778842,9.31901673,2285.6,2285.5,3.50032815]
[1750567779023,9.28601622,2285.6,2285.5,3.50032815]
[1750567780539,8.50421622,2285.6,2285.5,3.50032815]
[1750567784422,10.19463262,2285.6,2285.5,3.50032815]
[1750567784640,8.50421622,2285.6,2285.5,3.50032815]
[1750567785350,8.50421622,2285.6,2285.3,3.50060022]
[1750567785513,0.03300051,2285.5,2285.4,3.50048131]
[1750567787353,8.50421622,2285.6,2285.5,3.50032815]
[1750567789536,8.50421622,2285.6,2285.4,3.50044638]
[1750567789745,0.03300051,2285.5,2285.4,3.50044638]
[1750567790650,0.03300051,2285.5,2285.0,0.8141]
[1750567790651,40.7685,2285.4,2284.8,1.901]
[1750567790816,8.50421622,2284.9,2284.8,5.40227885]
[1750567791149,8.50421622,2285.2,2285.1,3.50088205]
[1750567791478,15.73421622,2285.2,2285.1,3.50088205]
[1750567791652,15.96282097,2285.2,2285.1,3.50088205]
[1750567794018,8.73282097,2285.2,2285.1,3.50088205]
[1750567796258,0.8082,2285.1,2284.7,5.40255381]
[1750567796459,8.53721673,2285.0,2284.7,5.40255381]
[1750567796622,8.50421622,2285.0,2284.8,3.50130207]
[1750567796826,0.03300051,2284.9,2284.8,13.50130207]
[1750567799483,8.50421622,2285.0,2284.9,3.50124731]
[1750567799650,0.8082,2285.1,2285.0,3.50109409]
[1750567799846,7.26300051,2285.1,2284.9,3.50117889]
[1750567800048,7.26300051,2285.1,2285.0,3.50109409]
[1750567800481,8.94051266,2285.1,2284.8,13.50130608]
[1750567800677,9.28351622,2285.0,2284.9,3.50124731]
[1750567801760,16.51351622,2285.0,2284.9,3.50124731]
[1750567802802,15.73421622,2285.0,2284.9,3.50124731]
[1750567803878,8.50421622,2285.0,2284.9,3.50124731]
[1750567804080,15.73421622,2285.0,2284.9,3.50124731]
[1750567805955,17.40842832,2285.0,2284.9,3.50124731]
[1750567807500,15.73421622,2285.0,2284.9,3.50124731]
[1750567809097,15.73421622,2285.0,2284.8,13.50133509]
[1750567809306,0.03300051,2284.9,2284.8,13.50133509]
[1750567809964,0.26163306,2284.9,2284.8,13.50133509]
[1750567813806,0.7656,2284.8,2284.2,18.43517125]
[1750567813966,8.50421622,2284.4,2284.3,3.50207317]
[1750567814176,8.50421622,2284.6,2284.5,3.50186036]
[1750567814412,15.73321622,2284.6,2284.5,3.50186036]
[1750567814608,8.50421622,2284.6,2284.5,3.50186036]
[1750567814912,0.22863255,2284.9,2284.8,3.50140056]
[1750567816808,0.26163306,2284.9,2284.8,3.50140056]
[1750567817309,0.22863255,2284.9,2284.8,3.50140056]
[1750567817714,0.26163306,2284.9,2284.8,3.50140056]
[1750567818812,0.22863255,2284.9,2284.8,3.50140056]
[1750567820528,0.22863255,2284.9,2284.8,5.019996]
[1750567822179,0.22863255,2284.9,2284.8,5.06375912]
[1750567822381,0.22863255,2284.9,2284.8,5.019996]
[1750567823591,0.22863255,2284.9,2284.8,22.29275918]
[1750567823784,0.22863255,2284.9,2284.8,22.248996]
[1750567827413,0.22863255,2284.9,2284.8,15.019996]
[1750567827582,0.22863255,2284.9,2284.8,6.21970056]
[1750567827784,0.22863255,2284.9,2284.8,16.21970056]
[1750567831231,0.22863255,2284.9,2284.8,18.83071228]
[1750567832934,0.22863255,2284.9,2284.8,19.38071228]
[1750567839649,0.22863255,2284.9,2284.8,17.48071228]
[1750567839824,0.22863255,2284.9,2284.8,25.19431915]
[1750567842130,0.22863255,2284.9,2284.8,25.74431915]
[1750567842872,0.1420718,2285.7,2285.6,3.500175]
[1750567843014,0.1420718,2285.7,2285.6,22.622175]
[1750567843453,0.37062474,2285.7,2285.6,22.622175]
[1750567843651,0.37062474,2285.7,2285.6,23.32256093]
[1750567844481,0.37062474,2285.7,2285.6,22.622175]
[1750567844684,1.14332474,2285.7,2285.6,13.500175]
[1750567844854,1.14332474,2285.7,2285.6,22.622175]
[1750567845279,1.14332474,2285.7,2285.6,13.500175]
[1750567848881,0.37062474,2285.7,2285.4,3.50037448]
[1750567849202,3.50058402,2285.4,2284.9,1.898]
[1750567849369,13.51919573,2285.6,2284.9,3.50123464]
[1750567849370,9.27501622,2285.0,2284.9,3.50123464]
[1750567849693,10.20251784,2285.0,2284.9,3.50123464]
[1750567849899,9.27501622,2285.0,2284.9,3.50123464]
[1750567851802,9.27501622,2285.0,2284.7,3.50141897]
[1750567852029,0.03300051,2284.9,2284.8,10.0]
[1750567852304,9.27501622,2285.0,2284.9,3.50124731]
[1750567852704,9.27501622,2285.0,2284.8,13.50135158]
[1750567854609,10.20251784,2285.0,2284.8,13.50135158]
[1750567855099,10.20251784,2285.0,2284.7,3.50150152]
[1750567855282,0.03300051,2284.9,2284.7,3.50150152]
[1750567856606,0.7667,2284.8,2284.5,10.513]
[1750567856806,9.27091622,2284.6,2284.1,5.40041803]
[1750567856986,8.50421622,2284.4,2284.3,3.50215655]
[1750567857190,8.50421622,2284.4,2284.1,1.898]
[1750567857375,0.79970051,2284.3,2284.1,5.40046065]
[1750567857926,0.79970051,2284.3,2284.2,3.50232028]
[1750567858323,0.7667,2284.3,2284.2,3.50232028]
[1750567858490,0.79970051,2284.6,2284.3,3.50206184]
[1750567859228,0.22862352,2284.5,2284.3,3.50206184]
[1750567859616,0.22862352,2284.5,2284.4,3.50201365]
[1750567861314,0.22862352,2284.5,2284.4,4.2024212]
[1750567861489,0.22862352,2284.5,2284.4,3.50201365]
[1750567863740,0.22862352,2284.5,2284.4,4.27781365]
[1750567864236,0.22862352,2284.5,2284.4,3.50201365]
[1750567868036,0.22862352,2284.5,2284.4,14.32158671]
[1750567868222,0.22862352,2284.5,2284.4,14.27781365]
[1750567868622,0.22862352,2284.5,2284.4,21.50081365]
[1750567869117,0.22862352,2284.5,2284.4,22.05081365]
[1750567869435,9.29021622,2285.6,2285.4,3.50045182]
[1750567869833,9.29021622,2285.6,2285.4,3.50042817]
[1750567870131,9.51879567,2285.6,2285.3,1.896]
[1750567870447,10.52812161,2285.6,2285.3,1.896]
[1750567870738,10.52812161,2285.6,2285.4,3.50045908]
[1750567871753,10.52812161,2285.6,2285.3,1.896]
[1750567871908,0.03300051,2285.5,2285.3,1.896]
[1750567872811,10.52812161,2285.6,2285.3,1.896]
[1750567873006,9.51879567,2285.6,2285.3,1.896]
[1750567873840,9.51879567,2285.6,2285.3,5.39657242]
[1750567874141,9.51879567,2285.6,2285.4,3.50048131]
[1750567875640,9.51879567,2285.6,2285.3,5.39657085]
[1750567875845,9.51879567,2285.6,2285.4,3.50045635]
[1750567876046,9.51879567,2285.6,2285.3,1.896]
[1750567876247,9.51879567,2285.6,2285.3,5.39659982]
[1750567876747,9.51879567,2285.6,2285.4,3.50046518]
[1750567877546,9.51879567,2285.6,2285.3,5.39657199]
[1750567878551,9.51879567,2285.6,2285.3,1.896]
[1750567878724,0.03300051,2285.5,2285.3,1.896]
[1750567879130,8.50421622,2285.4,2285.3,1.896]
[1750567879555,10.83486934,2285.6,2285.3,1.896]
[1750567879749,0.03300051,2285.5,2285.3,1.896]
[1750567879948,0.03300051,2285.5,2285.3,5.39662911]
[1750567880757,0.03300051,2285.5,2285.3,1.896]
[1750567881143,0.03300051,2285.5,2285.3,5.39663399]
[1750567882174,0.03300051,2285.5,2285.3,1.896]
[1750567882341,1.17705482,2285.5,2285.3,1.896]
[1750567882540,8.50421622,2285.4,2285.3,1.896]
[1750567883169,9.29021622,2285.4,2285.3,1.896]
[1750567883357,9.29021622,2285.4,2285.1,3.50089842]
[1750567883543,1.79842756,2285.3,2285.0,5.39703567]
[1750567883745,8.50421622,2285.2,2285.1,13.50094087]
[1750567883945,8.50421622,2285.2,2285.0,5.39703225]
[1750567884580,8.50421622,2285.2,2284.7,0.7758]
[1750567884791,1.76542705,2285.3,2284.8,5.39738359]
[1750567884792,9.29021622,2285.0,2284.8,5.39738359]
[1750567885078,0.03300051,2284.9,2284.8,1.896]
[1750567886965,0.03300051,2284.9,2284.6,3.5016446]
[1750567887484,0.03300051,2284.9,2284.7,3.50155228]
[1750567887783,0.03300051,2284.9,2284.6,3.50165045]
[1750567890085,8.50421622,2284.8,2284.5,5.39785703]
[1750567890250,8.50421622,2284.8,2284.6,3.50167967]
[1750567890583,8.50421622,2284.8,2284.6,3.50170708]
[1750567891084,0.03300051,2284.7,2284.6,3.50170708]
[1750567891584,8.50421622,2284.8,2284.7,3.50155381]
[1750567893891,9.7263747,2284.8,2284.6,3.50164478]
[1750567894050,0.03300051,2284.7,2284.6,3.50164478]
[1750567894389,0.7533,2284.6,2284.5,1.896]
[1750567894784,0.7533,2284.6,2284.5,5.39786036]
[1750567895086,0.7533,2284.6,2284.5,1.896]
[1750567896076,2.52656752,2284.6,2284.5,1.896]
[1750567897391,11.03078374,2284.6,2284.5,1.896]
[1750567898386,11.03078374,2284.6,2284.5,5.39786036]
[1750567899488,11.03078374,2284.6,2284.5,1.896]
[1750567899792,3.7297328,2285.0,2284.7,3.50152482]
[1750567899793,47.219,2284.9,2284.7,3.50152482]
[1750567899983,30.0,2284.8,2284.7,3.50152482]
[1750567901189,15.72321622,2284.9,2284.8,3.50140056]
[1750567902472,0.2286301,2285.0,2284.9,3.50124731]
[1750567902672,7.48063061,2285.0,2284.9,3.50124731]
[1750567903694,0.26163061,2285.0,2284.9,3.50124731]
[1750567904000,7.48063061,2285.0,2284.9,3.50124731]
[1750567904504,0.2286301,2285.0,2284.9,3.50124731]
[1750567904711,0.2286301,2285.0,2284.9,15.12437258]
[1750567905015,0.1420718,2285.7,2285.6,3.500175]
[1750567905170,4.1420718,2285.7,2285.6,5.394175]
[1750567905369,4.1420718,2285.7,2285.6,6.189375]
[1750567905916,0.1420718,2285.7,2285.6,6.189375]
[1750567906392,0.1420718,2285.7,2285.6,5.394175]
[1750567907711,0.17507231,2285.7,2285.4,0.7952]
[1750567908070,0.17507231,2285.7,2285.5,3.50026466]
[1750567908696,0.17507231,2285.7,2285.6,3.500175]
[1750567909621,0.1420718,2285.7,2285.6,3.500175]
[1750567910209,0.1420718,2285.7,2285.6,4.99302445]
[1750567910513,0.1420718,2285.7,2285.6,9.49703617]
[1750567911980,0.1420718,2285.7,2285.6,6.11118672]
[1750567914120,0.17507231,2285.7,2285.6,6.11118672]
[1750567914609,0.1420718,2285.7,2285.6,6.11118672]
[1750567915327,0.1420718,2285.7,2285.6,4.263975]
[1750567917511,0.1420718,2285.7,2285.6,5.93181887]
[1750567920753,0.1420718,2285.7,2285.6,18.54283059]
[1750567920884,0.1420718,2285.7,2285.6,19.09283059]
[1750567921083,0.1420718,2285.7,2285.6,18.54283059]
[1750567921433,0.1420718,2285.7,2285.6,17.82481887]
[1750567923726,0.1420718,2285.7,2285.6,25.03781887]
[1750567926323,0.1420718,2285.7,2285.6,28.64041586]
[1750567932316,0.1420718,2285.7,2285.6,37.14463208]
[1750567933236,0.7567,2287.1,2287.0,3.49803235]
[1750567933607,0.03300051,2287.4,2287.3,3.49757355]
[1750567933852,0.22846154,2287.3,2286.9,3.49803976]
[1750567934035,0.8277,2287.1,2286.9,3.49803976]
[1750567934354,0.8277,2287.1,2286.8,3.49823144]
[1750567934355,0.86070051,2287.1,2286.8,3.49823144]
[1750567934537,8.50421622,2287.0,2286.8,3.49823144]
[1750567934941,0.8277,2287.1,2286.8,3.49823144]
[1750567935249,1.93331615,2287.1,2286.9,3.49818531]
[1750567935439,1.96631666,2287.1,2286.9,3.49818531]
[1750567935840,1.96631666,2287.1,2287.0,3.49803235]
[1750567936240,1.96631666,2287.1,2286.8,3.49828432]
[1750567936879,1.96631666,2287.1,2286.4,3.49889507]
[1750567936880,40.0,2286.8,2286.4,1.89]
[1750567937048,0.8277,2286.8,2286.6,3.49850268]
[1750567937561,0.8277,2286.8,2286.7,3.49849127]
[1750567938055,0.8277,2286.8,2286.5,3.49879728]
[1750567938056,0.8277,2286.8,2286.6,3.49858808]
[1750567938237,0.8277,2286.8,2286.7,3.49849127]
[1750567939043,0.8277,2286.8,2286.4,1.89]
[1750567939362,0.7654,2286.1,2285.6,3.50003958]
[1750567939543,0.7654,2285.9,2285.5,3.50022376]
[1750567939743,0.7654,2285.9,2285.4,5.39036341]
[1750567939744,0.03300051,2285.8,2285.4,1.89]
[1750567939949,0.7654,2285.7,2285.4,1.89]
[1750567940142,0.03300051,2285.6,2285.4,5.39046682]
[1750567940345,0.03300051,2285.6,2285.4,1.89]
[1750567940662,0.03300051,2285.6,2285.4,5.3904731]
[1750567941357,0.7654,2285.7,2285.5,3.50032815]
[1750567941531,0.79840051,2285.7,2285.5,3.50032815]
[1750567942648,0.7654,2286.0,2285.9,3.49971564]
[1750567943183,0.79840051,2286.0,2285.8,3.49981475]
[1750567943340,0.79840051,2286.0,2285.9,3.49971564]
[1750567943858,0.7654,2286.0,2285.9,3.49971564]
[1750567944731,0.80500051,2286.2,2285.8,3.49983175]
[1750567944931,0.80500051,2286.2,2285.8,2.49696885]
[1750567945247,0.772,2286.4,2286.1,3.49940947]
[1750567945426,0.03300051,2286.3,2286.1,3.49940947]
[1750567945632,0.03300051,2286.3,2286.2,3.49916122]
[1750567945867,0.772,2286.4,2286.2,3.49916122]
[1750567946168,0.772,2286.4,2286.1,3.49935246]
[1750567946169,0.03300051,2286.3,2286.1,3.49935246]
[1750567946457,0.03300051,2286.3,2286.2,3.4992564]
[1750567947068,0.03300051,2286.3,2285.9,1.89]
[1750567947773,0.03300051,2286.3,2286.0,3.49954725]
[1750567948758,0.03300051,2286.3,2285.8,1.89]
[1750567948964,0.799,2286.2,2285.8,5.38984478]
[1750567949167,0.03300051,2286.1,2285.8,5.38984478]
[1750567949681,0.03300051,2286.1,2285.6,3.50002803]
[1750567949682,1.349,2286.0,2285.6,3.50002803]
[1750567949835,0.03300051,2285.9,2285.6,3.50002803]
[1750567950658,0.03300051,2285.9,2285.5,1.89]
[1750567951032,0.03300051,2285.9,2285.8,3.49986875]
[1750567951237,0.799,2286.0,2285.9,3.49971564]
[1750567952743,0.799,2286.0,2285.8,3.49981547]
[1750567952744,0.83200051,2286.0,2285.8,3.49981547]
[1750567953309,0.799,2285.6,2284.4,1.89]
[1750567953463,0.799,2285.6,2284.8,3.50130633]
[1750567953464,0.799,2285.3,2284.8,3.50130633]
[1750567953665,0.03300051,2285.2,2284.7,3.5014889]
[1750567953857,0.799,2285.1,2284.7,3.5014889]
[1750567954060,0.03300051,2285.0,2284.7,3.5014889]
[1750567954670,0.03300051,2285.0,2284.5,3.50182975]
[1750567954671,0.03300051,2285.0,2284.8,3.50138438]
[1750567955799,0.03300051,2285.0,2284.9,3.50124731]
[1750567956578,0.03300051,2285.0,2284.8,3.5013428]
[1750567956774,0.03300051,2285.0,2284.9,3.50124731]